bitfinex/quotes_ETHUSD_20251217
["timestamp","ask_amount","ask_price","bid_price","bid_amount"]
[1765997885739,0.46438023,2815.5,2813.9,2.9508]
[1765997885938,2.14,2815.3,2813.9,6.79966631]
[1765997886275,5.7534,2815.4,2813.9,3.24588]
[1765997886458,7.8934,2815.0,2814.0,0.59]
[1765997887165,0.46438023,2815.8,2814.1,2.9508]
[1765997887387,6.21778023,2815.8,2814.4,2.9508]
[1765997887534,2.14,2815.9,2814.5,0.59]
[1765997887885,0.46438023,2815.8,2814.4,2.9508]
[1765997888030,2.14,2815.5,2814.5,0.59]
[1765997888385,0.02123894,2816.0,2814.5,3.5408]
[1765997888533,0.02123894,2816.0,2814.5,4.25019782]
[1765997888534,0.46438023,2815.8,2814.5,4.25019782]
[1765997888732,2.60438023,2815.7,2814.5,4.25019782]
[1765997888959,2.14,2815.7,2814.5,7.80318782]
[1765997889230,3.57053282,2817.5,2814.5,1.29939782]
[1765997889231,5.7534,2815.6,2814.5,1.29939782]
[1765997889436,2.14,2815.5,2814.5,0.59]
[1765997890029,2.14,2815.7,2814.1,0.46438023]
[1765997890172,5.7534,2815.4,2814.0,3.41518023]
[1765997890383,0.02123894,2816.0,2814.2,0.59]
[1765997890384,7.8934,2815.3,2814.2,0.59]
[1765997890599,7.8934,2815.3,2814.2,4.14340711]
[1765997890735,5.4308,2816.1,2814.4,2.9508]
[1765997891072,5.4308,2815.2,2814.5,0.59]
[1765997891275,2.2381,2814.9,2813.4,2.9508]
[1765997891435,2.2381,2814.7,2813.5,0.59]
[1765997891641,2.2381,2815.4,2813.7,3.5908]
[1765997891967,2.2381,2815.4,2814.1,3.5908]
[1765997892138,2.2381,2815.4,2814.2,0.59]
[1765997892460,2.2381,2815.4,2814.3,0.59]
[1765997892680,2.2381,2815.2,2814.3,0.59]
[1765997893058,2.2381,2815.2,2813.6,0.70951318]
[1765997893258,2.2381,2815.1,2813.7,0.589]
[1765997893463,2.2381,2814.9,2813.7,0.589]
[1765997893879,2.2381,2814.9,2813.7,4.14299693]
[1765997894192,2.2381,2814.9,2813.8,0.76971363]
[1765997894401,2.2381,2814.9,2813.8,4.36051363]
[1765997894555,2.92629023,2815.3,2813.8,4.36051363]
[1765997894756,2.2381,2815.2,2813.8,4.36051363]
[1765997895085,7.6689,2815.1,2813.8,4.36051363]
[1765997895286,2.2381,2815.1,2814.0,3.5908]
[1765997895600,0.46438023,2815.4,2814.0,3.5908]
[1765997895765,0.001,2815.6,2814.0,3.5908]
[1765997895966,5.4308,2815.4,2813.9,0.90045536]
[1765997896169,0.001,2815.6,2813.9,0.90045536]
[1765997896170,8.13328023,2815.1,2813.9,0.90045536]
[1765997896783,8.13328023,2815.1,2813.9,0.49495136]
[1765997896969,8.13328023,2815.1,2814.0,0.589]
[1765997897460,8.13328023,2815.1,2814.0,4.1798]
[1765997897659,0.46438023,2815.4,2814.0,0.589]
[1765997897959,0.001,2815.6,2814.0,0.589]
[1765997898160,0.001,2815.6,2813.4,3.95981795]
[1765997898161,2.2381,2814.8,2814.1,0.588]
[1765997898468,0.46438023,2814.9,2814.2,0.588]
[1765997898690,5.4308,2814.5,2814.2,0.588]
[1765997898894,2.2381,2814.4,2814.2,0.588]
[1765997899103,2.2381,2814.8,2814.2,0.588]
[1765997899396,2.70248023,2814.8,2814.2,0.588]
[1765997901899,0.46438023,2814.8,2814.2,0.588]
[1765997902102,0.46438023,2815.1,2814.3,0.588]
[1765997902396,2.2381,2814.5,2813.9,0.59]
[1765997902595,2.2381,2814.5,2813.0,3.55489658]
[1765997902596,5.4308,2814.1,2812.9,3.5569459]
[1765997902781,2.2381,2814.4,2813.2,5.3548]
[1765997902995,2.2381,2815.1,2813.3,0.002]
[1765997903311,0.02123894,2815.2,2813.4,5.3568]
[1765997903312,0.46438023,2814.7,2813.4,5.3568]
[1765997903609,2.70248023,2814.7,2813.6,5.3548]
[1765997903805,0.46438023,2814.6,2813.6,5.3548]
[1765997904024,2.2381,2814.7,2813.6,3.55416548]
[1765997904300,0.001,2815.5,2814.3,5.3548]
[1765997904504,0.001,2815.5,2814.4,1.12348]
[1765997904718,0.001,2815.5,2814.5,5.3548]
[1765997904862,0.001,2815.6,2814.7,5.3568]
[1765997905059,5.4308,2815.4,2814.4,0.53548]
[1765997905273,5.4308,2814.9,2814.5,0.588]
[1765997905478,2.2381,2814.8,2814.5,0.588]
[1765997905690,2.2381,2814.8,2813.8,0.40185457]
[1765997905892,7.6689,2814.8,2813.9,0.587]
[1765997906283,2.2381,2814.7,2813.9,0.587]
[1765997906485,2.2381,2814.7,2814.0,0.587]
[1765997907296,2.2381,2815.1,2814.0,0.587]
[1765997907499,2.70248023,2815.1,2814.1,5.3548]
[1765997907671,2.70248023,2815.5,2814.3,5.3548]
[1765997907886,7.6689,2815.1,2814.4,0.587]
[1765997908269,0.001,2815.6,2814.5,5.3558]
[1765997908468,0.001,2815.6,2814.7,5.3558]
[1765997908691,7.6689,2816.1,2814.9,5.3538]
[1765997908890,5.4308,2816.0,2815.0,0.53548]
[1765997909197,7.6689,2815.9,2815.0,1.12248]
[1765997909503,0.001,2815.5,2815.0,6.47628]
[1765997909680,2.2391,2816.2,2815.0,6.47628]
[1765997909876,0.02123894,2816.7,2815.4,5.3528]
[1765997909877,2.2381,2816.6,2815.4,5.3528]
[1765997910079,0.001,2816.7,2815.6,5.3528]
[1765997910398,2.25933894,2817.4,2815.8,5.3528]
[1765997910798,2.72371917,2817.4,2815.7,0.405504]
[1765997910998,2.25933894,2817.4,2815.9,5.757304]
[1765997911170,2.25933894,2817.4,2816.0,5.9388]
[1765997911372,2.25933894,2817.4,2816.0,6.5732304]
[1765997911785,2.72371917,2817.4,2816.0,6.5732304]
[1765997912287,2.2391,2817.3,2816.0,6.5732304]
[1765997913019,5.4308,2816.9,2815.6,0.46438023]
[1765997913192,2.2381,2816.8,2815.7,5.9378]
[1765997913389,2.2381,2816.8,2815.7,9.48924594]
[1765997913822,2.70348023,2817.3,2815.9,5.3508]
[1765997914120,2.2381,2817.2,2815.9,5.3508]
[1765997914323,2.2381,2817.2,2815.9,6.2997256]
[1765997915631,5.4308,2816.9,2815.5,0.405504]
[1765997915819,2.2381,2816.7,2815.6,0.586]
[1765997916014,2.2381,2816.7,2815.6,1.05038023]
[1765997916193,2.2381,2816.7,2815.6,6.40118023]
[1765997916393,2.2381,2816.7,2815.7,1.03584112]
[1765997916795,5.4308,2816.8,2815.7,6.38664112]
[1765997917002,7.6689,2816.6,2815.5,0.405504]
[1765997917338,0.02123894,2817.2,2815.3,5.3508]
[1765997917339,2.2381,2816.4,2815.6,0.586]
[1765997917541,2.2381,2816.4,2815.3,5.3508]
[1765997917542,2.2381,2816.2,2814.8,3.55257197]
[1765997917720,0.22381,2816.1,2815.1,5.3508]
[1765997917921,0.001,2816.7,2815.8,5.3508]
[1765997918215,0.46538023,2817.3,2816.1,0.405504]
[1765997918216,0.001,2817.3,2816.1,0.405504]
[1765997918415,0.001,2817.3,2816.4,5.3498]
[1765997918614,0.001,2817.8,2816.6,0.86988423]
[1765997918838,0.001,2818.5,2817.1,5.3468]
[1765997919124,2.2381,2818.7,2817.3,5.3458]
[1765997919332,2.2381,2818.5,2817.3,5.88038]
[1765997919727,7.6689,2818.4,2817.4,0.586]
[1765997920156,2.2391,2818.8,2817.4,5.9318]
[1765997920555,2.2391,2818.8,2817.5,5.3458]
[1765997920727,2.70348023,2818.8,2817.5,5.3458]
[1765997920929,0.46438023,2818.6,2817.3,0.53458]
[1765997921128,2.1441,2818.5,2817.4,0.586]
[1765997922649,2.1441,2818.2,2817.1,5.3458]
[1765997922857,2.1441,2817.9,2817.2,0.586]
[1765997923126,0.21441,2818.1,2817.2,0.586]
[1765997923326,2.60848023,2818.2,2817.0,5.3458]
[1765997923546,2.1441,2818.0,2817.1,0.586]
[1765997924361,2.1441,2818.0,2817.2,0.586]
[1765997924656,2.1441,2817.9,2817.2,0.586]
[1765997925455,0.001,2818.0,2817.2,0.586]
[1765997925650,5.8467,2818.0,2816.9,5.3458]
[1765997925927,2.1441,2817.9,2817.0,0.586]
[1765997926659,7.9898,2817.9,2816.7,5.751304]
[1765997926956,7.9898,2817.9,2816.8,1.51616117]
[1765997927157,0.001,2818.0,2816.9,5.751304]
[1765997927688,5.8457,2817.8,2816.8,0.93016117]
[1765997927887,5.8457,2817.6,2816.9,0.586]
[1765997928088,0.46438023,2817.8,2816.9,0.586]
[1765997928267,2.60848023,2817.7,2816.9,0.586]
[1765997928990,5.8457,2817.6,2816.4,5.3458]
[1765997929187,5.8457,2817.4,2816.5,0.586]
[1765997929490,7.9898,2817.4,2816.4,5.3458]
[1765997929661,7.9898,2817.4,2816.5,0.586]
[1765997930458,2.1441,2817.3,2816.1,5.3458]
[1765997930659,1.74172374,2817.8,2815.7,5.3458]
[1765997930660,0.46438023,2817.4,2815.7,5.3458]
[1765997930858,1.71414113,2817.5,2815.8,0.586]
[1765997930859,0.46438023,2817.2,2815.8,0.586]
[1765997931077,5.8457,2816.9,2815.8,0.586]
[1765997931417,2.1441,2817.2,2815.8,0.586]
[1765997931579,2.1441,2816.7,2815.8,0.586]
[1765997931779,7.9898,2816.7,2815.8,0.586]
[1765997931981,8.7411037,2817.4,2815.8,0.586]
[1765997932288,2.1441,2816.6,2815.8,0.586]
[1765997932672,7.9898,2816.6,2815.8,0.586]
[1765997933099,7.9898,2816.6,2815.2,3.55210471]
[1765997933100,0.02123894,2816.8,2814.8,5.3458]
[1765997933262,0.46438023,2816.0,2814.5,0.002]
[1765997933592,5.8457,2815.9,2814.6,0.586]
[1765997933797,7.9898,2815.6,2814.6,0.586]
[1765997935303,2.1441,2815.5,2814.5,0.53678]
[1765997935470,2.1441,2815.5,2814.6,0.586]
[1765997936501,2.1441,2815.1,2814.5,0.002]
[1765997936812,7.9898,2814.9,2814.6,0.586]
[1765997937010,0.02123894,2815.6,2814.6,0.586]
[1765997937011,2.60848023,2815.6,2814.6,0.586]
[1765997937182,0.46438023,2815.4,2814.6,0.586]
[1765997937379,7.9898,2815.4,2814.6,0.586]
[1765997937809,0.46438023,2815.3,2814.6,0.586]
[1765997939178,0.02123894,2815.2,2814.6,0.586]
[1765997939576,0.02123894,2815.0,2814.6,0.586]
[1765997939784,2.1441,2814.9,2814.6,0.586]
[1765997940477,2.1441,2814.7,2814.5,0.002]
[1765997940693,7.9898,2814.6,2813.9,0.002]
[1765997940907,0.02123894,2814.8,2813.8,0.586]
[1765997940908,5.8457,2814.4,2813.8,0.586]
[1765997941219,0.46438023,2814.5,2813.5,0.586]
[1765997941393,0.46438023,2814.5,2813.5,1.17958]
[1765997941586,0.48561917,2814.5,2813.5,7.70338]
[1765997941791,0.48561917,2814.5,2813.5,7.1098]
[1765997943824,0.02123894,2814.3,2813.5,7.1098]
[1765997944327,0.02123894,2814.3,2813.4,0.002]
[1765997944328,2.1441,2814.1,2813.4,0.002]
[1765997944504,2.16533894,2814.1,2813.4,0.588]
[1765997944698,8.01103894,2814.1,2813.4,0.588]
[1765997945790,0.02123894,2813.9,2813.4,0.002]
[1765997946120,0.02123894,2813.5,2812.7,0.002]
[1765997946297,0.02123894,2813.5,2812.8,0.586]
[1765997946497,0.02123894,2813.5,2812.8,1.17978]
[1765997947230,0.02123894,2813.7,2813.0,5.3498]
[1765997947528,0.02123894,2813.9,2813.0,6.5258]
[1765997947822,0.02123894,2814.0,2813.2,5.3498]
[1765997948033,0.02123894,2814.0,2812.8,4.73495633]
[1765997948034,7.9898,2813.7,2813.3,0.586]
[1765997948399,7.9898,2813.7,2812.8,5.94358]
[1765997948721,7.9898,2813.7,2812.9,1.3387084]
[1765997949326,0.02123894,2813.8,2812.9,1.3387084]
[1765997950515,2.214,2813.3,2812.8,0.002]
[1765997950706,7.9504,2813.2,2812.8,0.002]
[1765997951347,0.02123894,2813.4,2812.8,0.002]
[1765997952214,0.02123894,2813.6,2812.8,5.3518]
[1765997952410,0.02123894,2813.8,2812.9,0.586]
[1765997953407,0.02123894,2813.8,2813.0,6.5258]
[1765997953802,2.20593894,2813.6,2813.0,0.586]
[1765997954001,0.02123894,2813.7,2813.0,0.586]
[1765997954206,2.1847,2814.4,2813.2,6.5258]
[1765997954454,0.02123894,2814.0,2813.3,0.6931304]
[1765997955222,0.02123894,2814.0,2813.3,5.3498]
[1765997955547,0.02123894,2814.3,2813.3,5.3498]
[1765997956044,0.02123894,2813.9,2813.2,1.176]
[1765997956203,0.02123894,2813.9,2813.4,0.586]
[1765997960229,0.02123894,2814.1,2813.0,6.5278]
[1765997960432,0.02123894,2814.1,2813.1,5.9358]
[1765997960731,0.02123894,2814.1,2813.1,7.1118]
[1765997960934,0.02123894,2814.1,2813.1,1.762]
[1765997961129,0.02123894,2814.1,2813.2,5.3498]
[1765997962368,0.02123894,2814.1,2813.2,6.5258]
[1765997962566,0.02123894,2814.1,2813.3,0.71118]
[1765997963264,2.20593894,2813.9,2813.1,0.586]
[1765997963466,5.7657,2813.5,2812.7,0.002]
[1765997963665,7.9504,2813.4,2812.7,0.002]
[1765997963965,8.41478023,2813.2,2812.7,0.002]
[1765997964142,5.7657,2813.1,2812.7,0.002]
[1765997964347,7.9504,2813.0,2812.7,0.002]
[1765997964769,7.9504,2813.1,2812.7,0.002]
[1765997964944,7.9504,2813.0,2812.7,0.002]
[1765997965274,1.18424209,2813.4,2812.7,0.002]
[1765997965275,2.64908023,2813.3,2812.7,0.002]
[1765997965482,0.02123894,2813.0,2812.7,0.002]
[1765997966754,7.9504,2812.9,2812.6,0.002]
[1765997966977,0.02123894,2812.8,2812.6,0.002]
[1765997967372,0.48561917,2813.5,2812.6,6.5126]
[1765997967582,0.02123894,2813.5,2812.7,6.5106]
[1765997968060,0.02123894,2813.5,2812.7,5.3306]
[1765997968061,0.02123894,2813.3,2812.7,5.3306]
[1765997968263,0.02123894,2813.3,2812.6,0.002]
[1765997968561,0.02123894,2813.3,2812.6,6.5126]
[1765997969673,3.894e-05,2813.5,2812.9,1.1376]
[1765997969869,3.894e-05,2813.5,2813.1,6.4682]
[1765997970684,0.02123894,2813.7,2813.2,5.3306]
[1765997970889,0.02123894,2813.5,2813.2,5.3306]
[1765997971269,0.02123894,2813.6,2813.2,5.3306]
[1765997971472,3.894e-05,2813.6,2813.2,5.3306]
[1765997971700,0.02123894,2813.9,2813.4,5.3306]
[1765997971987,3.894e-05,2813.9,2813.6,6.3823]
[1765997972188,6.37293894,2814.5,2813.7,5.2882]
[1765997972391,3.894e-05,2814.1,2813.7,6.3611]
[1765997972565,5.78693894,2814.5,2813.7,6.9046]
[1765997972789,5.78693894,2814.5,2814.0,5.2457]
[1765997972790,0.02123894,2814.5,2814.0,5.2457]
[1765997972987,0.02123894,2814.6,2814.2,5.2457]
[1765997973191,1.72528756,2815.6,2814.1,1.6377]
[1765997973192,5.7657,2815.8,2814.8,5.2033]
[1765997973510,5.7657,2815.8,2814.9,0.586]
[1765997973825,0.71986186,2815.8,2814.9,0.586]
[1765997973982,0.02123894,2815.3,2814.9,0.586]
[1765997974494,0.02123894,2815.3,2814.9,5.7893]
[1765997974998,0.02123894,2815.3,2814.9,0.586]
[1765997975510,3.894e-05,2815.5,2814.9,0.586]
[1765997975732,0.02123894,2815.7,2815.0,5.2033]
[1765997975890,3.894e-05,2816.0,2815.4,5.2033]
[1765997976218,0.001,2816.8,2815.7,5.2033]
[1765997976432,0.001,2816.8,2816.1,5.2023]
[1765997976711,0.001,2817.1,2816.2,0.586]
[1765997976879,0.02123894,2816.4,2815.6,0.586]
[1765997977084,0.02123894,2816.6,2815.7,6.1248]
[1765997977312,0.02123894,2816.6,2815.7,6.79588]
[1765997977615,0.01420455,2816.8,2815.8,6.1036]
[1765997977815,0.01420455,2816.8,2816.0,5.2023]
[1765997978020,0.01420455,2816.8,2816.0,6.1036]
[1765997978381,0.01420455,2816.4,2815.7,0.67108]
[1765997978585,0.01420455,2816.4,2815.5,6.1036]
[1765997978586,0.01420455,2816.4,2815.8,0.586]
[1765997979920,4.55e-06,2816.4,2815.8,5.7883]
[1765997980430,4.55e-06,2816.4,2815.0,0.46438023]
[1765997980720,4.55e-06,2816.4,2815.2,5.1881]
[1765997980721,0.01420455,2816.2,2815.2,5.1881]
[1765997980906,0.01420455,2816.6,2815.6,6.0894]
[1765997981107,0.01420455,2816.6,2815.7,5.7741]
[1765997981823,0.01420455,2816.8,2815.9,5.1881]
[1765997982183,7.94450455,2817.0,2816.0,0.9013]
[1765997982417,0.46438023,2816.9,2816.1,0.586]
[1765997982934,0.001,2817.1,2816.2,6.12490884]
[1765997983216,0.001,2817.1,2816.2,5.1881]
[1765997983418,0.001,2816.8,2816.2,5.1881]
[1765997984285,0.001,2817.1,2816.2,5.76551]
[1765997984491,0.001,2817.1,2816.3,6.0884]
[1765997985222,0.001,2817.1,2816.3,5.1871]
[1765997985428,0.001,2817.1,2816.5,5.1871]
[1765997985726,0.001,2817.1,2816.6,5.7721]
[1765997985886,0.001,2817.1,2816.6,0.585]
[1765997986091,7.9313,2817.1,2816.3,5.7721]
[1765997986292,7.9313,2817.1,2816.2,0.585]
[1765997986293,7.9303,2816.9,2816.2,0.585]
[1765997986493,0.001,2817.1,2816.4,5.1871]
[1765997986987,0.001,2817.1,2816.2,0.585]
[1765997988131,7.9303,2817.9,2816.5,5.1861]
[1765997988292,0.60020455,2818.0,2816.4,0.585]
[1765997988293,5.5829,2817.3,2816.4,0.585]
[1765997988494,0.71986186,2817.8,2816.5,5.1861]
[1765997988495,0.585,2817.5,2816.5,5.1861]
[1765997989204,2.9324,2817.5,2816.5,5.1861]
[1765997989543,0.59920455,2817.5,2816.6,6.0732]
[1765997989695,0.59920455,2817.5,2816.7,6.0732]
[1765997990333,0.01420455,2817.5,2816.7,6.0732]
[1765997990534,0.01420455,2817.5,2816.7,5.1861]
[1765997990711,0.01420455,2817.5,2816.4,5.7711]
[1765997990908,5.5829,2817.7,2816.4,5.7711]
[1765997991135,0.01420455,2817.6,2816.6,5.1861]
[1765997991308,2.36160455,2817.6,2816.6,5.1861]
[1765997991529,7.9303,2817.5,2816.6,5.1861]
[1765997991926,0.001,2817.1,2816.6,6.0732]
[1765997992127,0.01420455,2817.6,2816.7,6.0722]
[1765997992500,7.94450455,2817.6,2816.7,0.585]
[1765997992705,2.3474,2817.5,2816.7,0.585]
[1765997993030,7.9303,2817.5,2816.7,0.585]
[1765997994397,0.01420455,2817.6,2816.7,6.6572]
[1765997994627,0.01420455,2817.6,2816.8,5.1851]
[1765997994923,7.9303,2817.5,2816.7,0.585]
[1765997995123,7.9303,2817.3,2816.7,0.585]
[1765997995328,7.9303,2817.3,2816.3,0.8871]
[1765997995537,7.9303,2817.3,2816.4,0.585]
[1765997996218,0.01420455,2817.4,2816.5,6.0722]
[1765997996410,0.01420455,2817.6,2816.7,5.1851]
[1765997996611,0.01420455,2817.6,2816.9,6.0722]
[1765997996808,5.59810455,2818.0,2817.0,0.8729]
[1765997997134,7.94450455,2817.7,2816.7,5.1851]
[1765997997334,2.3474,2817.5,2816.7,0.585]
[1765997998032,7.9303,2817.5,2816.7,0.585]
[1765997998234,0.01420455,2817.7,2817.0,6.058]
[1765997998407,6.18310455,2818.0,2817.1,5.7701]
[1765997998606,6.18310455,2818.0,2817.2,5.1851]
[1765997998607,0.60020455,2818.0,2817.2,5.1851]
[1765997998828,0.01520455,2818.0,2817.4,5.1851]
[1765997999135,0.001,2818.0,2817.4,6.058]
[1765997999841,0.001,2818.0,2817.5,5.7701]
[1765998000215,2.3484,2818.3,2817.6,6.057]
[1765998000216,0.001,2818.3,2817.6,6.057]
[1765998000416,0.01520455,2818.3,2817.5,0.585]
[1765998000616,2.36260455,2818.3,2817.5,0.585]
[1765998000829,0.586,2818.8,2817.5,0.585]
[1765998000830,0.001,2818.8,2818.2,5.1841]
[1765998001009,0.001,2819.1,2818.3,5.1841]
[1765998001215,0.001,2819.1,2818.0,0.8699]
[1765998001411,2.3474,2818.8,2818.1,0.585]
[1765998001628,2.3474,2818.8,2817.7,5.1841]
[1765998001629,5.5829,2818.8,2817.7,0.585]
[1765998001831,2.3474,2818.7,2817.7,0.585]
[1765998002013,0.001,2819.0,2817.8,6.054]
[1765998002212,0.001,2819.0,2817.9,5.1841]
[1765998002442,5.59710455,2818.4,2817.8,0.8699]
[1765998002737,0.01420455,2818.4,2817.8,0.8699]
[1765998002952,5.5829,2818.6,2817.8,0.8699]
[1765998003155,0.01420455,2818.7,2817.0,0.585]
[1765998003156,2.3474,2818.3,2817.0,0.585]
[1765998003358,2.3474,2818.3,2817.1,5.8127]
[1765998003359,7.9303,2818.1,2817.1,5.8127]
[1765998003557,0.01420455,2818.7,2817.1,5.8127]
[1765998003558,2.3474,2818.2,2817.1,5.8127]
[1765998004173,0.01420455,2818.2,2817.0,5.8127]
[1765998004336,7.9303,2818.1,2817.2,5.8127]
[1765998004527,7.9303,2818.1,2817.3,0.585]
[1765998004528,2.3474,2818.0,2817.3,0.585]
[1765998004730,0.585,2818.4,2817.4,5.8127]
[1765998004930,1.30486186,2818.4,2817.4,5.8127]
[1765998005226,2.3474,2818.2,2817.3,0.585]
[1765998005462,7.9303,2818.2,2817.3,0.585]
[1765998005659,7.9303,2818.2,2817.3,6.3977]
[1765998005863,5.5829,2818.2,2815.9,9.15400207]
[1765998006039,0.585,2818.4,2816.7,0.46438023]
[1765998006040,7.9303,2817.8,2816.7,0.46438023]
[1765998006230,5.5829,2817.7,2816.8,0.584]
[1765998006571,0.01420455,2818.1,2816.5,0.002]
[1765998006572,5.5829,2817.3,2816.5,0.002]
[1765998006754,2.3474,2817.2,2816.6,0.584]
[1765998007125,2.3474,2817.5,2816.6,0.584]
[1765998007351,2.3474,2817.4,2816.6,0.584]
[1765998007573,2.36160455,2818.1,2816.7,5.8127]
[1765998007731,2.3474,2818.4,2817.0,0.46438023]
[1765998007933,2.3474,2818.4,2817.2,5.8127]
[1765998008243,2.3474,2818.1,2817.3,0.584]
[1765998008557,5.5829,2818.2,2817.3,6.97797]
[1765998008745,2.3474,2818.4,2817.3,6.97797]
[1765998009247,2.3474,2818.2,2817.3,6.39397]
[1765998009462,0.23474,2818.1,2817.4,0.584]
[1765998009765,0.001,2818.7,2817.5,5.9183]
[1765998009968,0.001,2819.0,2817.6,9.12964707]
[1765998010264,0.001,2819.0,2817.7,0.46438023]
[1765998010265,5.9266,2818.9,2817.7,0.46438023]
[1765998010474,8.1682,2818.8,2817.9,0.46438023]
[1765998010653,8.1682,2818.8,2817.9,5.6432]
[1765998011154,2.2416,2818.8,2817.9,5.6432]
[1765998011483,5.939,2818.7,2817.8,0.584]
[1765998011692,8.1796,2818.7,2817.8,0.584]
[1765998011847,2.2406,2818.6,2817.9,0.584]
[1765998012043,0.01520455,2819.0,2817.9,0.584]
[1765998012244,8.1796,2818.6,2817.9,0.584]
[1765998012472,0.01420455,2818.8,2816.8,0.63967]
[1765998012473,5.939,2818.3,2816.9,5.6432]
[1765998012783,0.01420455,2818.5,2817.2,0.46438023]
[1765998012947,2.2406,2818.4,2817.1,6.10758023]
[1765998013275,5.939,2817.9,2816.6,5.6432]
[1765998013483,2.2406,2817.4,2816.5,0.002]
[1765998013683,8.1796,2817.3,2816.6,0.584]
[1765998014546,2.2406,2817.3,2816.6,0.584]
[1765998014987,2.2406,2817.3,2816.5,0.46638023]
[1765998014988,2.70498023,2817.1,2815.4,0.002]
[1765998015153,7.24286186,2817.0,2815.4,0.002]
[1765998015972,7.24286186,2817.0,2815.8,0.586]
[1765998016491,8.1796,2816.8,2815.8,0.586]
[1765998016695,0.584,2817.0,2815.9,5.6432]
[1765998016987,5.939,2817.2,2816.0,0.405504]
[1765998017190,5.939,2817.2,2816.1,5.6432]
[1765998017395,2.2406,2817.3,2816.0,0.405504]
[1765998017684,2.2406,2817.7,2816.2,6.048704]
[1765998017901,2.2406,2817.7,2816.6,6.048704]
[1765998018279,2.25480455,2818.1,2816.6,6.048704]
[1765998018480,2.2406,2818.0,2816.6,6.048704]
[1765998018662,2.2406,2818.5,2816.6,6.048704]
[1765998018863,2.2406,2818.7,2817.2,6.048704]
[1765998019062,0.001,2818.8,2817.9,5.6432]
[1765998019307,0.001,2818.8,2817.8,0.405504]
[1765998019308,0.001,2818.8,2818.1,5.6432]
[1765998019981,0.001,2818.8,2818.2,0.584]
[1765998020767,0.001,2819.0,2818.3,5.6432]
[1765998020966,0.001,2819.1,2818.4,6.26592]
[1765998021189,2.2416,2819.6,2818.5,0.405504]
[1765998021394,2.2406,2819.5,2818.5,0.405504]
[1765998021598,2.2416,2819.4,2818.6,0.584]
[1765998021774,0.46438023,2819.1,2817.6,5.6432]
[1765998021976,0.59820455,2819.3,2817.6,5.6432]
[1765998021977,0.46438023,2818.7,2817.7,0.584]
[1765998022291,8.64398023,2819.2,2818.1,5.6432]
[1765998022493,8.64398023,2819.2,2818.2,0.584]
[1765998022791,0.01420455,2818.6,2818.2,0.584]
[1765998022992,4.55e-06,2818.4,2817.8,0.405504]
[1765998023300,4.55e-06,2818.4,2817.3,0.584]
[1765998023496,0.46438023,2817.7,2816.5,5.6452]
[1765998023670,2.70498023,2817.7,2816.6,0.584]
[1765998023868,0.46438023,2817.9,2816.7,6.2272]
[1765998024198,0.46438023,2817.8,2816.8,0.584]
[1765998024373,0.46438023,2817.8,2816.8,6.2272]
[1765998024566,8.1796,2817.9,2816.8,6.2272]
[1765998024567,2.2406,2817.9,2816.8,6.2272]
[1765998024769,4.55e-06,2818.4,2817.2,5.6432]
[1765998024973,4.55e-06,2818.4,2816.8,9.3123807]
[1765998024974,4.55e-06,2818.4,2817.6,5.6432]
[1765998025168,4.55e-06,2818.4,2817.7,6.2272]
[1765998025499,4.55e-06,2818.4,2817.8,5.6432]
[1765998025869,4.55e-06,2818.4,2817.9,0.584]
[1765998026099,4.55e-06,2818.4,2817.6,0.405504]
[1765998026278,4.55e-06,2818.4,2816.5,0.002]
[1765998026483,2.2406,2818.3,2817.1,6.10758023]
[1765998026697,5.93900455,2818.4,2817.3,9.1926102]
[1765998026904,4.55e-06,2818.4,2817.4,5.6432]
[1765998027104,4.55e-06,2818.4,2817.2,0.584]
[1765998027393,5.939,2818.1,2817.0,0.46438023]
[1765998027581,8.1796,2817.7,2816.5,9.77968817]
[1765998027782,0.584,2818.3,2816.5,0.002]
[1765998027783,5.939,2817.5,2816.5,0.002]
[1765998027995,0.46438023,2818.0,2816.5,0.002]
[1765998027996,0.01420455,2816.9,2816.6,0.584]
[1765998028200,5.95320455,2816.9,2816.5,0.002]
[1765998028372,2.2406,2816.8,2816.6,0.584]
[1765998028569,5.95320455,2816.9,2816.5,0.002]
[1765998028570,0.01420455,2816.9,2816.5,0.002]
[1765998030371,0.01420455,2816.7,2816.5,0.002]
[1765998030580,0.01420455,2816.7,2816.3,0.584]
[1765998030782,0.01420455,2816.5,2816.1,0.584]
[1765998031004,2.2406,2816.4,2816.1,0.584]
[1765998031212,8.1796,2816.4,2816.1,0.584]
[1765998031432,8.19380455,2816.2,2815.8,0.002]
[1765998031714,5.939,2815.8,2815.4,0.002]
[1765998031870,0.01420455,2815.9,2815.4,0.002]
[1765998032066,2.25480455,2815.9,2815.4,0.002]
[1765998032271,8.19380455,2815.9,2815.4,0.002]
[1765998032777,2.25480455,2815.9,2815.4,0.002]
[1765998032968,0.01420455,2815.7,2815.4,0.002]
[1765998034008,2.2406,2815.4,2815.0,0.002]
[1765998034219,2.25480455,2815.3,2815.0,0.002]
[1765998034423,5.939,2815.2,2814.4,0.46438023]
[1765998034587,8.1796,2815.1,2814.3,0.002]
[1765998034914,0.01420455,2815.3,2814.3,0.002]
[1765998035105,0.01420455,2815.1,2814.4,0.35552962]
[1765998035289,0.01420455,2815.1,2814.3,0.002]
[1765998035484,0.01420455,2815.1,2814.4,0.46438023]
[1765998035911,0.01420455,2815.5,2814.4,4.13714821]
[1765998036132,0.01420455,2815.9,2814.9,0.405504]